bitfinex-derivatives/quotes_ETHF0:USTF0_20250810
["timestamp","ask_amount","ask_price","bid_price","bid_amount"]
[1754836554978,1.2991,4214.6,4214.5,0.9904]
[1754836555473,1.37698,4214.6,4214.5,0.6007]
[1754836555774,2.03108,4214.6,4214.5,0.4316]
[1754836556979,2.03108,4214.6,4214.3,0.4745]
[1754836556980,1.11701,4214.4,4214.3,1.0979]
[1754836557174,1.11701,4214.4,4214.3,0.4316]
[1754836557382,1.11701,4214.4,4214.3,1.267]
[1754836557675,0.84041,4214.4,4214.3,1.5476]
[1754836557884,1.77361,4214.4,4214.3,1.5476]
[1754836558081,1.2991,4214.4,4214.3,1.5476]
[1754836558471,1.2991,4214.4,4213.8,34.184]
[1754836558472,2.03104,4215.1,4215.0,0.1775]
[1754836558675,0.47445,4215.0,4214.7,1.14076]
[1754836558978,1.5566,4214.8,4214.7,0.47446]
[1754836559176,1.5566,4214.3,4214.2,1.74153]
[1754836559378,1.2991,4214.3,4214.2,2.02213]
[1754836559573,0.3659,4214.8,4214.7,1.07517]
[1754836559774,1.5566,4214.8,4214.7,0.4316]
[1754836559972,1.5566,4214.7,4214.6,0.47448]
[1754836560883,1.5566,4214.7,4214.6,1.18268]
[1754836561180,1.5566,4214.7,4214.6,1.74148]
[1754836561778,1.5566,4214.7,4214.6,0.47448]
[1754836561984,0.3659,4214.0,4213.9,2.02216]
[1754836562183,1.5566,4214.0,4213.9,2.02216]
[1754836562980,1.2991,4214.0,4213.9,2.02216]
[1754836563376,0.26,4214.7,4214.0,0.47455]
[1754836563583,1.37444,4215.0,4214.9,1.267]
[1754836563876,0.6425,4214.6,4214.5,1.0979]
[1754836564077,1.5566,4214.6,4214.5,0.4316]
[1754836564279,1.5566,4214.6,4214.5,1.46489]
[1754836564479,0.9025,4215.1,4215.0,1.35173]
[1754836564677,0.9025,4215.1,4215.0,2.02203]
[1754836564881,1.2991,4215.1,4215.0,2.02203]
[1754836565082,0.6425,4214.7,4214.6,1.1019]
[1754836565281,1.5566,4214.7,4214.6,0.8213]
[1754836565481,1.5566,4214.7,4214.6,0.4316]
[1754836565681,1.5466,4214.4,4214.3,2.04411]
[1754836565882,1.2851,4214.4,4214.3,2.04411]
[1754836566379,0.41,4215.1,4214.8,0.47446]
[1754836566680,1.5466,4215.3,4215.2,0.6386]
[1754836566981,1.5466,4215.3,4215.2,1.5696]
[1754836567182,1.2851,4215.3,4215.2,1.5696]
[1754836567973,2.3824,4215.5,4215.4,1.5696]
[1754836568180,2.3824,4215.5,4214.4,3.95289999]
[1754836568181,0.1703,4214.5,4214.4,3.95289999]
[1754836568372,1.0209,4215.1,4215.0,0.6386]
[1754836568576,0.6109,4214.5,4214.4,4.22829999]
[1754836568777,2.02109,4214.5,4214.4,4.74509999]
[1754836568976,2.02109,4214.5,4214.4,3.58969999]
[1754836570388,1.5621,4213.5,4213.4,1.3086]
[1754836571286,1.39947,4214.4,4213.5,0.67]
[1754836571483,0.47455,4214.1,4213.8,1.5696]
[1754836571782,0.2642,4214.6,4214.0,1.5696]
[1754836571983,0.4745,4214.4,4214.2,0.6386]
[1754836572178,0.4745,4214.4,4214.3,1.5696]
[1754836572575,0.6448,4214.4,4214.3,1.5696]
[1754836572780,1.562,4214.4,4214.3,0.7145]
[1754836572989,1.0905,4214.4,4214.3,1.5696]
[1754836573487,0.4345,4214.4,4214.3,2.04411]
[1754836573683,0.1703,4214.4,4214.3,2.04411]
[1754836573883,0.2124,4214.8,4214.3,2.04411]
[1754836573884,0.95105,4214.9,4214.4,0.6752]
[1754836574086,0.4345,4214.5,4214.4,1.5696]
[1754836574477,0.4345,4214.5,4214.4,5.15929999]
[1754836575176,0.1703,4214.5,4214.4,5.15929999]
[1754836575589,0.4345,4214.5,4214.4,5.15929999]
[1754836575784,0.616,4214.5,4214.4,5.15929999]
[1754836575984,0.8284,4214.5,4214.4,5.15929999]
[1754836576689,0.9172,4214.9,4214.8,0.4587]
[1754836576877,1.0875,4214.9,4214.8,1.1554]
[1754836577389,1.0875,4214.9,4214.8,0.8944]
[1754836578190,1.0875,4214.9,4214.8,1.3086]
[1754836579488,1.0875,4214.9,4214.8,1.78306]
[1754836579690,1.0875,4214.9,4214.8,1.3086]
[1754836580286,1.0875,4214.9,4214.8,1.78306]
[1754836580488,1.0875,4215.2,4215.1,1.5696]
[1754836580695,0.1703,4215.2,4215.1,1.5696]
[1754836580991,0.4345,4215.2,4215.1,1.5696]
[1754836581290,0.1815,4215.1,4214.9,3.58969999]
[1754836581488,1.56194,4215.0,4214.9,4.48409999]
[1754836582691,1.0875,4215.0,4214.9,4.48409999]
[1754836582899,1.0875,4215.0,4214.9,3.84549999]
[1754836583191,1.3007,4215.0,4214.9,3.84549999]
[1754836583593,1.0875,4215.0,4214.9,4.30419999]
[1754836583798,1.0875,4215.0,4214.9,4.71839999]
[1754836584897,1.0875,4215.0,4214.9,4.89829999]
[1754836587495,1.0875,4215.0,4214.9,5.15929999]
[1754836587697,0.1703,4215.0,4214.9,5.63374999]
[1754836588091,0.616,4215.0,4214.9,5.15929999]
[1754836588389,0.4345,4215.0,4214.9,5.15929999]
[1754836588598,0.47441,4215.3,4215.0,0.47444]
[1754836588790,1.56191,4215.3,4215.2,1.5696]
[1754836589196,1.56191,4215.3,4215.2,1.3086]
[1754836589990,1.77511,4215.3,4215.2,1.3086]
[1754836590197,1.57438,4215.5,4215.2,5.15929999]
[1754836590402,0.4744,4215.4,4215.3,1.5696]
[1754836590596,1.1,4215.5,4215.4,1.3863]
[1754836590892,1.57438,4215.5,4215.4,1.5696]
[1754836591098,2.00888,4215.5,4215.4,1.5696]
[1754836591291,2.40278,4215.5,4215.4,1.5696]
[1754836592593,2.66188,4215.5,4215.4,1.5696]
[1754836592991,0.6774,4215.5,4215.4,8.04399]
[1754836593188,0.73574,4216.8,4216.4,0.6386]
[1754836593391,0.9357,4217.5,4216.8,0.931]
[1754836593600,1.5466,4217.4,4217.3,0.619]
[1754836593792,2.02077,4217.4,4217.3,0.619]
[1754836594590,2.02077,4217.4,4217.1,0.6752]
[1754836594791,0.9357,4216.8,4216.5,0.5168]
[1754836594991,1.2851,4216.6,4216.5,1.5696]
[1754836595889,1.51121,4216.1,4216.0,1.0767]
[1754836596091,2.04561,4216.1,4216.0,0.8601]
[1754836596297,2.04561,4216.1,4216.0,0.1695]
[1754836596797,2.04568,4215.5,4215.4,1.2462]
[1754836596997,0.2586,4215.8,4214.8,0.5986]
[1754836597194,0.4744,4215.4,4214.8,1.07305]
[1754836597393,0.47436,4215.7,4214.8,0.5986]
[1754836597589,0.47443,4215.1,4215.0,1.5242]
[1754836598296,1.64463,4215.1,4215.0,0.8601]
[1754836598500,2.04573,4215.1,4215.0,1.24470182]
[1754836598695,0.75133,4215.1,4215.0,1.52270182]
[1754836598898,1.11023,4215.1,4215.0,1.52270182]
[1754836599096,0.47441,4215.3,4215.2,0.5986]
[1754836599297,0.6597,4216.3,4215.5,1.5242]
[1754836599603,0.47431,4216.2,4215.9,1.5242]
[1754836599802,1.1855,4217.2,4216.3,1.5242]
[1754836599803,0.47427,4216.5,4216.3,1.5242]
[1754836600006,0.47427,4216.5,4216.4,1.5242]
[1754836600303,0.47427,4216.5,4216.4,5.11389999]
[1754836600499,0.6358,4216.8,4216.7,0.5986]
[1754836600706,0.6358,4216.8,4216.7,1.5242]
[1754836601410,1.5713,4216.8,4216.7,1.0762]
[1754836601704,1.5713,4216.8,4216.7,1.2462]
[1754836602002,1.5713,4216.8,4216.7,1.5242]
[1754836603004,1.5713,4216.8,4216.7,1.2462]
[1754836603304,2.04553,4216.8,4216.7,0.8601]
[1754836603604,2.04557,4216.5,4216.4,4.44979999]
[1754836604303,2.04557,4216.5,4216.4,4.83589999]
[1754836604497,2.04557,4216.5,4216.4,5.11389999]
[1754836605103,2.04557,4216.5,4216.4,4.27979999]
[1754836605899,1.76977,4216.5,4216.4,4.44979999]
[1754836606095,0.6769,4216.9,4216.4,4.18829999]
[1754836606307,1.18534,4217.7,4216.4,4.18829999]
[1754836606308,0.47421,4217.1,4217.0,0.4286]
[1754836606507,0.47421,4217.1,4217.0,1.5242]
[1754836606806,0.47419,4217.2,4217.0,1.5242]
[1754836607005,0.47419,4217.2,4217.1,1.5242]
[1754836608508,2.04549,4217.2,4217.1,0.1695]
[1754836608908,2.04553,4216.8,4216.7,1.0762]
[1754836609202,2.04553,4216.8,4216.7,0.431]
[1754836609707,2.04553,4216.8,4216.7,0.1695]
[1754836610095,0.93053,4216.8,4216.7,1.5242]
[1754836610296,0.6597,4217.1,4216.7,5.11389999]
[1754836610510,1.76965,4217.5,4217.4,0.3395]
[1754836610709,2.04545,4217.5,4217.4,0.601]
[1754836611004,1.5713,4217.5,4217.4,1.5242]
[1754836611197,1.51105,4217.5,4217.4,1.5242]
[1754836611398,2.04545,4217.5,4217.4,1.5242]
[1754836611601,1.5713,4217.5,4217.4,1.5242]
[1754836612007,1.5713,4217.5,4217.4,0.8601]
[1754836612201,0.6358,4217.1,4217.0,1.5242]
[1754836612506,1.2955,4217.1,4217.0,1.99841]
[1754836613406,1.2955,4217.1,4217.0,1.5242]
[1754836614503,0.2758,4217.5,4217.0,1.5242]
[1754836614504,0.47416,4217.5,4217.0,1.99841]
[1754836614706,0.8944,4217.5,4217.4,1.5242]
[1754836614904,1.76965,4217.5,4217.4,1.5242]
[1754836615300,2.04545,4217.5,4217.4,5.11389999]
[1754836619712,1.5713,4217.5,4217.4,5.11389999]
[1754836620312,1.5713,4217.5,4217.4,4.18829999]
[1754836620612,1.5713,4217.5,4217.4,3.58969999]
[1754836620813,1.5713,4217.5,4217.4,3.75919999]
[1754836621007,1.5713,4217.5,4217.4,4.83589999]
[1754836621213,1.5713,4217.5,4217.4,5.11389999]
[1754836621414,1.2955,4217.5,4217.4,4.18829999]
[1754836621613,0.6358,4217.5,4217.4,4.18829999]
[1754836622115,0.6358,4217.5,4217.4,5.11389999]
[1754836622506,0.47413,4217.8,4217.5,0.5395]
[1754836622709,0.47413,4217.8,4217.7,1.5242]
[1754836623710,0.47412,4217.8,4217.7,0.5986]
[1754836624514,0.47411,4217.9,4217.8,1.5242]
[1754836625017,1.76961,4217.9,4217.8,1.5242]
[1754836626413,2.03961,4217.9,4217.8,1.5242]
[1754836627715,0.93051,4217.9,4217.8,1.5242]
[1754836627908,2.07361,4217.9,4217.8,0.6901]
[1754836628114,1.3232,4217.5,4217.4,1.5726]
[1754836628417,0.4501,4217.5,4217.4,1.5726]
[1754836628614,0.47415,4217.6,4217.4,1.5726]
[1754836628818,1.38965,4217.6,4217.5,1.3016]
[1754836629019,2.06735,4217.6,4217.5,1.5726]
[1754836629216,2.06735,4217.6,4217.5,0.175]
[1754836630111,2.06735,4217.6,4217.4,3.58969999]
[1754836630418,0.47415,4217.6,4217.5,4.20159999]
[1754836630619,0.47409,4218.1,4218.0,1.5726]
[1754836630815,1.79725,4218.5,4218.4,0.6119]
[1754836631010,1.79725,4218.5,4218.4,1.5726]
[1754836631615,1.3232,4218.5,4218.4,1.5726]
[1754836632418,1.37801,4218.8,4218.7,1.5726]
[1754836632614,0.474,4218.9,4218.8,1.5726]
[1754836632814,1.37799,4219.0,4218.9,1.5726]
[1754836633019,2.06719,4219.0,4218.9,1.5726]
[1754836633613,0.47405,4218.5,4218.4,0.6119]
[1754836633923,1.79725,4218.5,4218.4,1.5726]
[1754836634120,2.06725,4218.5,4218.4,1.5726]
[1754836634423,2.06725,4218.5,4218.4,1.1281]
[1754836634623,2.06725,4218.5,4218.4,1.3016]
[1754836634825,1.10807,4218.3,4218.2,0.6119]
[1754836635016,0.47405,4218.5,4218.2,0.6119]
[1754836635217,0.47405,4218.5,4218.4,0.6119]
[1754836635523,0.47405,4218.5,4218.4,1.5726]
[1754836636113,2.06725,4218.5,4218.4,0.175]
[1754836637022,2.06726,4218.3,4218.2,3.58969999]
[1754836637221,2.06726,4218.3,4218.2,4.47929999]
[1754836637523,0.47406,4218.3,4218.2,5.16229999]
[1754836637822,1.79726,4218.3,4218.2,5.16229999]
[1754836638320,1.10806,4218.3,4218.2,5.16229999]
[1754836639024,1.79726,4218.3,4218.2,5.16229999]
[1754836639630,2.06726,4218.3,4218.2,5.16229999]
[1754836642121,1.18508,4218.7,4218.2,4.20159999]
[1754836642122,0.47406,4218.4,4218.2,4.20159999]
[1754836642316,0.47404,4218.5,4218.4,0.5487]
[1754836642628,0.47396,4219.2,4219.1,1.5726]
[1754836642921,0.47396,4219.3,4219.2,1.5726]
[1754836643121,1.59239,4220.1,4219.3,1.5726]
[1754836643122,0.47394,4219.4,4219.3,1.5726]
[1754836643928,1.18469,4220.1,4218.3,1.67877109]
[1754836643929,2.20793,4219.5,4219.4,0.6119]
[1754836644115,3.16713,4219.5,4219.4,0.175]
[1754836644320,2.89713,4219.5,4219.4,1.5726]
[1754836644931,2.20793,4219.5,4219.4,1.5726]
[1754836645126,2.89713,4219.5,4219.4,1.5726]
[1754836645321,3.16713,4219.5,4219.4,3.58969999]
[1754836646031,3.16713,4219.5,4219.4,4.21589999]
[1754836646230,2.89713,4219.5,4219.4,5.16229999]
[1754836646723,3.16713,4219.5,4219.4,5.16229999]
[1754836647320,2.89713,4219.5,4219.4,5.16229999]
[1754836647821,2.20793,4219.5,4219.4,5.16229999]
[1754836648224,2.48943,4219.5,4219.4,5.16229999]
[1754836648424,2.89713,4219.5,4219.4,5.16229999]
[1754836649331,3.16713,4219.5,4219.4,4.47929999]
[1754836650023,3.16713,4219.5,4219.4,4.20159999]
[1754836650518,3.16713,4219.5,4219.4,3.93819999]
[1754836651328,3.16713,4219.5,4219.4,4.47929999]
[1754836651734,1.57393,4219.5,4219.4,5.16229999]
[1754836652333,1.1,4219.5,4219.4,5.16229999]
[1754836652831,1.38932,4220.5,4220.4,0.6119]
[1754836653019,2.06702,4220.5,4220.4,1.3959]
[1754836653223,1.10782,4220.5,4220.4,1.1182]
[1754836653422,2.06702,4220.5,4220.4,1.1182]
[1754836653628,1.10787,4220.1,4220.0,0.6195]
[1754836653827,1.5932,4220.1,4220.0,1.1182]
[1754836654026,1.5932,4220.1,4220.0,1.3959]
[1754836654229,1.5932,4220.1,4220.0,1.1182]
[1754836654619,0.74385,4220.3,4220.2,0.6119]
[1754836654825,0.27,4221.0,4220.3,0.271]
[1754836655029,2.06696,4221.0,4220.9,0.6195]
[1754836655328,1.37776,4221.0,4220.9,1.3959]
[1754836656031,0.904,4221.0,4220.9,1.3959]
[1754836656233,1.34553,4221.3,4221.2,1.1117]
[1754836656435,2.02093,4221.3,4221.2,1.1117]
[1754836657526,2.02097,4220.9,4220.8,0.6134]
[1754836657725,1.16647,4220.9,4220.8,1.3902]
[1754836658132,0.47377,4220.9,4220.8,0.6122]
[1754836658827,0.73616,4221.1,4220.8,0.6122]
[1754836659028,0.91176,4221.1,4221.0,0.6122]
[1754836659226,1.16646,4221.1,4221.0,1.3902]
[1754836659530,2.02096,4221.1,4221.0,1.1117]
[1754836660033,0.47376,4221.1,4221.0,1.3902]
[1754836660332,0.47376,4221.1,4221.0,4.97989999]
[1754836660531,1.2898,4221.3,4221.2,0.6122]
[1754836660838,1.76353,4221.3,4221.2,1.3902]
[1754836661224,1.76353,4221.3,4221.2,1.1117]
[1754836661225,2.02093,4221.3,4221.2,1.1117]
[1754836661733,2.02095,4221.1,4221.0,3.58969999]
[1754836661932,2.02095,4221.1,4221.0,3.93859999]
[1754836662329,2.02095,4221.1,4221.0,3.76689999]
[1754836662834,2.02095,4221.1,4221.0,3.93859999]
[1754836663722,2.02095,4221.1,4221.0,3.76689999]
[1754836664129,2.02095,4221.1,4221.0,3.93859999]
[1754836664629,2.02095,4221.1,4221.0,4.20309999]
[1754836665426,0.47375,4221.1,4221.0,4.43809999]
[1754836665737,0.47373,4221.4,4221.3,1.3902]
[1754836666430,0.47372,4221.4,4221.3,0.8907]
[1754836666932,0.90405,4221.1,4221.0,3.93859999]
[1754836667235,2.02095,4221.1,4221.0,3.93859999]
[1754836667626,0.47384,4220.4,4220.1,0.235]
[1754836667827,0.47384,4220.4,4220.1,1.1117]
[1754836667828,1.5472,4220.2,4220.1,1.1117]
[1754836668028,1.18433,4221.4,4220.1,1.1117]
[1754836668029,0.6754,4221.2,4220.2,0.778]
[1754836668229,1.08319,4220.8,4220.7,0.6122]
[1754836668425,1.76359,4220.8,4220.7,1.3902]
[1754836668631,2.02099,4220.8,4220.7,1.1117]
[1754836669233,2.02099,4220.8,4220.7,0.6134]
[1754836669534,2.02102,4220.5,4220.2,0.2645]
[1754836669736,1.5472,4220.3,4220.2,0.2645]
[1754836669936,1.5472,4220.3,4220.2,0.6134]
[1754836670540,1.5472,4220.3,4220.2,0.8484]
[1754836670835,1.1846,4220.4,4219.5,1.1117]
[1754836671029,1.3681,4220.2,4220.1,1.1117]
[1754836671234,0.73624,4220.3,4220.2,1.3902]
[1754836671538,1.34564,4220.3,4220.2,1.3902]
[1754836671731,2.02104,4220.3,4220.2,1.3902]
[1754836671927,2.02104,4220.3,4220.2,3.58969999]
[1754836672928,1.76364,4220.3,4220.2,3.93859999]
[1754836673239,1.76364,4220.3,4220.2,4.70139999]
[1754836673240,2.02104,4220.3,4220.2,4.70139999]
[1754836674139,2.02104,4220.3,4220.2,3.58969999]
[1754836676437,2.02104,4220.3,4219.2,1.1117]
[1754836676438,0.47395,4219.3,4219.2,1.1117]
[1754836676636,1.08335,4219.3,4219.2,1.1117]
[1754836676837,2.02115,4219.3,4219.2,1.1117]
[1754836677233,2.02115,4219.3,4219.2,0.1772]
[1754836677434,2.02119,4219.0,4218.9,1.1117]
[1754836677639,2.01998258,4219.0,4218.9,1.1117]
[1754836677942,2.01998258,4219.0,4218.9,1.3902]
[1754836678136,1.18434,4221.3,4219.2,0.2645]
[1754836678343,2.02098,4220.9,4220.8,0.4417]
[1754836679042,0.6927,4220.9,4220.8,0.6134]
[1754836680037,1.2898,4220.9,4220.8,0.6134]
[1754836680638,1.5472,4220.9,4220.8,0.6134]
[1754836681035,0.6727,4220.9,4220.8,0.4417]
[1754836681240,1.5472,4220.9,4220.8,0.6134]
[1754836681640,1.5472,4220.6,4219.9,0.2645]
[1754836681849,1.5472,4220.1,4220.0,0.6134]
[1754836682042,0.4303,4219.7,4219.6,0.1717]
[1754836682346,1.5472,4219.7,4219.6,0.6134]
[1754836682547,1.5472,4219.7,4219.6,0.4417]
[1754836682849,1.2898,4219.7,4219.6,0.6134]
[1754836683537,0.6927,4219.7,4219.6,0.6134]
[1754836683937,1.2848,4219.7,4219.6,0.6134]
[1754836684442,0.6927,4219.7,4219.6,0.6134]
[1754836684640,0.47388,4220.0,4219.7,0.3766]
[1754836684846,0.73627,4220.1,4220.0,0.6134]
[1754836685347,1.57127,4220.1,4220.0,0.6134]
[1754836685541,2.02517,4220.1,4220.0,0.6134]
[1754836686945,1.18448,4220.8,4220.0,0.6134]
[1754836686946,0.2802,4220.8,4220.5,0.47381]
[1754836687150,0.93439,4220.8,4220.7,0.6403]
[1754836687452,1.5778,4220.8,4220.7,0.6403]
[1754836688044,1.5778,4220.8,4220.7,0.1822]
[1754836688442,0.4738,4220.7,4220.4,0.2788]
[1754836688642,10.2161393,4227.8,4220.9,0.6403]
[1754836688643,1.5778,4221.0,4220.9,0.6403]
[1754836688837,0.8966,4221.0,4220.9,0.6403]
[1754836689050,0.7192,4221.0,4220.9,0.6403]
[1754836689347,0.51936465,4221.8,4221.2,0.4735]
[1754836689348,0.75389,4221.7,4221.2,0.4735]
[1754836689545,2.05149,4221.7,4221.6,0.3615]
[1754836689747,0.436,4221.4,4221.3,0.461]
[1754836689949,0.7192,4220.8,4220.7,0.6403]
[1754836690153,0.7192,4220.8,4220.7,4.22999999]
[1754836690356,1.5778,4220.8,4220.7,4.22999999]
[1754836690656,0.2802,4220.8,4220.7,4.22999999]
[1754836690855,0.47376,4221.1,4220.9,0.6403]
[1754836690856,0.8966,4221.0,4220.9,0.6403]
[1754836691059,1.5778,4221.0,4220.9,0.1822]
[1754836691459,1.5778,4220.8,4220.7,4.05069999]
[1754836691659,2.05159,4220.8,4220.7,4.05069999]
[1754836691861,1.5778,4220.8,4220.7,4.22999999]
[1754836693755,1.5778,4220.8,4220.7,3.58969999]
[1754836693955,1.5778,4220.8,4220.7,3.16749999]
[1754836695369,1.5778,4220.8,4219.4,0.47394]
[1754836695370,0.9614,4220.6,4219.4,0.3847]
[1754836695660,0.47391,4219.8,4219.5,0.9441]
[1754836695867,0.47391,4219.8,4219.7,1.5807]
[1754836696366,0.47391,4219.8,4219.7,1.3019]
[1754836696367,2.05171,4219.8,4219.7,1.3019]
[1754836696561,0.3578,4219.8,4219.7,1.3019]
[1754836696766,0.47387,4220.1,4220.0,0.6366]
[1754836697066,1.51285,4220.3,4220.2,1.5807]
[1754836697261,0.47383,4220.5,4220.1,0.9441]
[1754836697460,1.77143,4220.5,4220.4,1.3019]
[1754836697666,2.05163,4220.5,4220.4,1.3019]
[1754836698061,0.47386,4220.1,4220.0,0.9441]
[1754836698262,0.6812,4220.5,4220.1,0.9441]
[1754836698465,1.51282,4220.5,4220.4,1.5807]
[1754836698664,2.05162,4220.5,4220.4,0.9172]
[1754836698974,2.05164,4220.3,4220.2,3.77289999]
[1754836699468,0.47381,4220.7,4220.3,0.3847]
[1754836699656,1.77141,4220.7,4220.6,0.6366]
[1754836699860,1.10811,4220.7,4220.6,1.5807]
[1754836700262,0.6343,4220.7,4220.6,1.5807]
[1754836701167,0.6343,4220.7,4220.6,1.57543938]
[1754836701963,1.039,4220.7,4220.6,1.57543938]
[1754836702269,1.2976,4220.7,4220.6,1.57543938]
[1754836702568,1.5778,4220.7,4220.6,1.57543938]
[1754836702968,1.2976,4220.7,4220.6,1.57543938]
[1754836703865,0.1774,4220.1,4220.0,0.8475]
[1754836704065,0.6343,4220.1,4220.0,1.5807]
[1754836704467,1.2976,4220.1,4220.0,1.5807]
[1754836704971,1.77147,4220.1,4220.0,1.5807]
[1754836705176,1.2976,4220.1,4220.0,1.5807]
[1754836705868,1.77146,4220.3,4220.2,0.6366]
[1754836706068,2.05166,4220.3,4220.2,1.3019]
[1754836706268,2.05166,4220.3,4220.2,1.5807]
[1754836706869,2.05166,4220.3,4220.2,0.4544]
[1754836707469,2.05167,4220.1,4220.0,3.58969999]
[1754836708269,1.5778,4220.1,4220.0,4.04409999]
[1754836708475,1.2976,4220.1,4220.0,5.17039999]
[1754836708775,1.5778,4220.1,4220.0,3.58969999]
[1754836709873,7.5778,4220.1,4220.0,3.58969999]
[1754836710664,8.0975475,4220.1,4220.0,3.58969999]
[1754836711372,7.5778,4220.1,4220.0,3.58969999]
[1754836711678,0.9145,4219.2,4219.1,1.3019]
[1754836711871,1.38847,4219.2,4219.1,1.3019]
[1754836712069,0.9145,4219.2,4218.2,1.67877109]
[1754836712268,0.47402,4218.7,4218.6,1.5807]
[1754836712466,1.10831,4218.9,4218.8,0.3654]
[1754836712670,1.10831,4218.9,4218.8,1.5807]
[1754836712968,1.38851,4218.9,4218.8,1.3019]
[1754836714663,1.38851,4218.9,4218.8,0.2712]
[1754836714868,0.9145,4218.5,4218.4,1.3019]
[1754836715063,1.38855,4218.5,4218.4,1.3019]
[1754836715264,1.38855,4218.5,4218.4,1.5807]
[1754836715465,1.10835,4218.5,4218.4,1.5807]
[1754836716379,0.6343,4218.5,4218.4,1.5807]
[1754836716572,1.10835,4218.5,4218.4,1.5807]
[1754836716878,1.10835,4218.5,4218.4,5.17039999]
[1754836717076,0.6343,4218.5,4218.4,5.17039999]
[1754836717572,0.65127,4219.2,4219.1,1.3209]
[1754836717879,1.1848,4219.7,4218.7,0.47401]
[1754836717880,0.47396,4219.3,4219.2,1.5865]
[1754836718074,0.47395,4219.4,4219.2,0.6318]
[1754836718269,0.47394,4219.5,4219.4,1.5865]
[1754836718474,0.47393,4219.6,4219.4,1.5865]
[1754836718775,0.83533,4219.6,4219.5,1.5865]
[1754836718976,1.10553,4219.6,4219.5,1.5865]
[1754836719766,1.37233,4219.6,4219.5,1.5865]
[1754836720276,1.37233,4219.6,4219.5,4.91059999]
[1754836720675,1.37233,4219.6,4219.5,5.17619999]
[1754836720874,1.10553,4219.6,4219.5,5.17619999]
[1754836722679,0.47393,4219.6,4219.5,5.17619999]
[1754836723180,0.92817,4220.1,4220.0,0.4466]
[1754836723375,1.37227,4220.1,4220.0,1.5865]
[1754836723780,1.10547,4220.1,4220.0,1.5865]
[1754836724081,1.37227,4220.1,4220.0,1.5865]
[1754836724380,1.37227,4220.1,4220.0,1.3209]
[1754836725081,1.37227,4220.1,4220.0,1.5865]
[1754836725381,1.37227,4220.1,4220.0,5.17619999]
[1754836725784,1.37227,4220.1,4220.0,4.91059999]
[1754836726084,1.37227,4220.1,4220.0,5.17619999]
[1754836726979,1.37227,4220.1,4220.0,4.91059999]
[1754836728485,1.37227,4220.1,4220.0,5.17619999]
[1754836728974,1.37227,4220.1,4220.0,4.91059999]
[1754836730383,1.37227,4220.1,4220.0,4.03629999]
[1754836730982,1.37227,4220.1,4220.0,4.72539999]
[1754836731779,1.37227,4220.1,4220.0,4.91059999]
[1754836733081,1.37227,4220.1,4220.0,4.03629999]
[1754836733281,1.37227,4220.1,4220.0,3.58969999]
[1754836736590,1.37227,4220.1,4220.0,3.11182999]
[1754836737691,1.37227,4220.1,4220.0,2.60512999]
[1754836741791,0.474,4219.0,4218.5,0.6318]
[1754836742093,1.3724,4219.0,4218.9,0.8974]
[1754836742294,0.474,4219.0,4218.9,1.5865]
[1754836743093,2.12769943,4219.0,4218.9,1.3209]
[1754836743396,2.12769943,4219.0,4218.9,0.4466]
[1754836743899,0.47405,4218.5,4218.4,1.5865]
[1754836744492,0.47399,4219.0,4218.9,1.5865]
[1754836744893,0.47399,4219.0,4218.9,5.17619999]
[1754836745395,2.11728943,4219.0,4218.9,4.91059999]
[1754836746501,2.11728943,4219.0,4218.9,4.03629999]
[1754836747399,2.11728943,4219.0,4218.9,4.69389999]
[1754836747587,2.11728943,4219.0,4218.9,3.86449999]
[1754836747791,2.11728943,4219.0,4218.9,3.58969999]
[1754836748496,2.11728943,4219.0,4218.9,3.10962999]
[1754836748699,0.64471,4217.9,4217.8,1.528]
[1754836748896,1.84560943,4217.9,4217.8,1.528]
[1754836749100,2.10200943,4217.9,4217.8,1.528]
[1754836749689,1.84560943,4217.9,4217.8,1.528]
[1754836749889,2.10200943,4217.9,4217.8,1.528]
[1754836750092,1.09033,4217.8,4217.7,1.2725]
[1754836750299,1.34673,4217.8,4217.7,1.528]
[1754836751300,1.09033,4217.8,4217.7,1.528]
[1754836751797,0.47413,4217.8,4217.7,3.76389999]
[1754836752101,0.47413,4217.8,4217.7,4.20459999]
[1754836752506,0.47413,4217.8,4217.7,5.11769999]
[1754836753396,1.09033,4217.8,4217.7,5.11769999]
[1754836755093,1.34673,4217.8,4217.7,5.11769999]
[1754836755498,1.09033,4217.8,4217.7,5.11769999]
[1754836757105,0.47412,4217.9,4217.7,5.11769999]
[1754836757292,0.47411,4218.0,4217.9,0.4407]
[1754836757494,0.47411,4218.0,4217.8,0.2555]
[1754836757495,0.47407,4218.4,4218.3,0.1742]
[1754836757696,0.47407,4218.4,4218.3,0.6149]
[1754836758201,0.47407,4218.4,4218.3,1.528]
[1754836758800,0.47405,4218.5,4218.4,1.528]
[1754836759903,1.34665,4218.5,4218.4,1.2725]
[1754836760102,1.34665,4218.5,4218.4,1.528]
[1754836760304,1.34665,4218.5,4218.4,5.11769999]
[1754836760503,1.09025,4218.5,4218.4,5.11769999]
[1754836760906,0.47405,4218.5,4218.4,5.11769999]
[1754836762209,0.47404,4218.6,4218.4,5.11769999]
[1754836762400,0.47404,4218.6,4218.5,1.528]
[1754836763208,1.09024,4218.6,4218.5,1.528]
[1754836764107,1.34664,4218.6,4218.5,1.528]
[1754836764493,1.09024,4218.6,4218.5,1.528]
[1754836764693,1.34664,4218.6,4218.5,1.528]
[1754836765103,1.34664,4218.6,4218.4,3.58969999]
[1754836765410,0.82704,4218.6,4218.5,3.58969999]
[1754836765901,1.34664,4218.6,4218.5,3.58969999]